bitfinex-derivatives/quotes_ETHF0:USTF0_20260223
["timestamp","ask_amount","ask_price","bid_price","bid_amount"]
[1771824603617,0.5934869,1866.8,1866.2,0.55996752]
[1771824604322,0.59977855,1866.8,1866.3,0.55362963]
[1771824604716,0.5934869,1867.0,1866.6,1.83596876]
[1771824604921,0.5934869,1866.8,1866.2,0.55996752]
[1771824605820,0.59866959,1866.8,1866.2,0.55996752]
[1771824606022,0.58687122,1866.5,1866.0,0.55362963]
[1771824607020,0.58687122,1866.5,1866.0,0.55766198]
[1771824607222,0.77009027,1866.4,1866.0,0.55766198]
[1771824607522,0.00518269,1866.8,1866.0,0.55766198]
[1771824607523,0.58687122,1866.3,1866.0,0.55766198]
[1771824609423,0.77301171,1866.2,1866.0,0.55766198]
[1771824609628,0.58687122,1866.3,1865.5,0.55362963]
[1771824609826,0.7730117,1866.2,1865.5,0.55362963]
[1771824610026,0.58687122,1866.3,1865.5,0.55362963]
[1771824610224,0.60384396,1866.5,1865.8,0.13396551]
[1771824610622,0.60384396,1866.5,1865.8,0.14038559]
[1771824610824,0.60384396,1866.7,1866.1,0.13396551]
[1771824612929,0.60966005,1868.0,1867.0,0.26788]
[1771824613226,0.60966005,1868.6,1867.7,2.48069366]
[1771824613532,0.60966005,1868.6,1867.8,0.00450237]
[1771824614028,0.61484069,1868.6,1867.8,0.01073018]
[1771824614225,0.61484069,1868.6,1867.9,0.00450237]
[1771824614418,0.61484069,1868.6,1867.8,0.00622781]
[1771824614619,0.61484069,1868.6,1867.9,0.00450237]
[1771824618129,0.58781161,1869.2,1868.4,0.37057709]
[1771824618321,0.58781161,1869.2,1868.2,0.37057709]
[1771824618724,0.58781161,1869.0,1868.2,0.37057709]
[1771824619129,0.5946552,1869.0,1868.2,0.37057709]
[1771824620432,0.58781161,1869.3,1868.6,0.38070963]
[1771824621131,0.58781161,1869.1,1868.6,0.38070963]
[1771824621424,0.59180589,1869.1,1868.4,0.38519304]
[1771824621826,0.58781161,1868.9,1868.4,0.38519304]
[1771824622026,0.58781161,1868.9,1868.1,0.38519304]
[1771824622831,0.58781161,1868.6,1868.1,0.38519304]
[1771824623727,0.00399428,1869.1,1867.8,0.3998475]
[1771824623728,0.58781161,1868.4,1867.8,0.3998475]
[1771824623922,0.58781161,1869.0,1867.8,0.3998475]
[1771824624333,0.58781161,1868.8,1867.8,0.3998475]
[1771824625230,0.59299225,1868.8,1867.8,0.3998475]
[1771824628534,0.58781161,1868.8,1867.9,0.26776]
[1771824628734,0.58781161,1868.8,1868.0,0.39378099]
[1771824629633,0.58781161,1868.6,1868.0,0.39378099]
[1771824631235,0.59299225,1868.6,1868.0,0.39378099]
[1771824631537,0.58781161,1868.6,1867.8,0.00622781]
[1771824631737,0.58781161,1868.3,1867.8,0.00622781]
[1771824632335,0.58781161,1868.1,1867.8,0.00622781]
[1771824633136,0.58781161,1868.1,1867.5,0.39794528]
[1771824633335,0.58781161,1869.0,1867.5,0.39794528]
[1771824633535,0.58781161,1868.6,1867.5,0.39794528]
[1771824633838,0.58781161,1868.6,1867.7,0.38499115]
[1771824634031,0.58781161,1868.6,1867.9,0.38785889]
[1771824637335,0.59299225,1868.6,1867.9,0.38785889]
[1771824638540,0.58781161,1869.0,1867.9,0.38785889]
[1771824638842,0.58781161,1868.8,1867.9,0.38785889]
[1771824639239,0.58781161,1868.6,1867.9,0.38785889]
[1771824640341,0.59299225,1868.6,1867.9,0.38785889]
[1771824641346,0.58781161,1868.6,1867.9,0.38785889]
[1771824641846,0.58781161,1868.4,1867.9,0.38785889]
[1771824643444,0.00399428,1869.1,1867.9,0.38785889]
[1771824643445,0.58781161,1868.6,1867.9,0.38785889]
[1771824643646,0.58781161,1868.4,1866.8,0.59344771]
[1771824643853,0.58781161,1868.2,1867.4,0.26777]
[1771824644045,0.58781161,1868.0,1867.4,0.26777]
[1771824644243,0.58781161,1867.8,1867.4,0.26777]
[1771824644641,0.00518064,1867.5,1867.4,0.27348728]
[1771824644949,0.0059509,1867.5,1867.3,0.59344771]
[1771824645151,0.26767,1868.5,1867.3,0.59344771]
[1771824645346,8.62193997,1868.4,1867.3,0.59344771]
[1771824645548,0.01635668,1868.2,1867.3,0.59344771]
[1771824645749,0.01635668,1868.0,1867.3,0.59344771]
[1771824645951,0.71160173,1867.9,1867.3,0.59344771]
[1771824646152,0.01635668,1867.9,1867.3,0.59861547]
[1771824654859,0.05998018,1867.7,1866.8,0.61884975]
[1771824655152,0.75366669,1867.6,1866.8,0.61884975]
[1771824655353,0.05998018,1867.6,1866.8,0.61884975]
[1771824655852,0.26777,1867.8,1866.8,0.62568734]
[1771824656050,0.00428337,1868.1,1866.8,0.62568734]
[1771824656252,0.07428278,1867.9,1866.8,0.62568734]
[1771824656452,0.07383811,1867.7,1866.8,0.62568734]
[1771824659554,0.13628901,1867.5,1866.8,0.62568734]
[1771824659756,0.13628901,1867.5,1866.6,0.61361772]
[1771824660458,0.13971077,1867.3,1865.7,0.61361772]
[1771824660659,0.13971077,1867.3,1865.9,0.61361772]
[1771824660855,0.13971077,1867.3,1865.9,0.61900717]
[1771824661559,0.13971077,1867.3,1866.1,0.61361772]
[1771824661862,0.1504779,1867.4,1866.1,0.61361772]
[1771824663358,0.15685262,1867.8,1866.5,0.61361772]
[1771824664556,0.15685262,1867.8,1866.7,0.61361772]
[1771824670059,0.14816071,1867.6,1866.7,0.61361772]
[1771824670659,0.14789391,1867.4,1866.7,0.61361772]
[1771824673060,0.15282473,1867.6,1866.7,0.61361772]
[1771824673261,0.84977884,1867.5,1866.7,0.61361772]
[1771824673566,0.69434697,1867.4,1866.7,0.61361772]
[1771824673765,0.15543187,1867.5,1866.7,0.61361772]
[1771824674264,0.14647145,1867.8,1866.7,0.61361772]
[1771824674465,0.69510777,1867.7,1866.7,0.61361772]
[1771824674767,0.14647145,1867.8,1866.7,0.61361772]
[1771824674961,0.84131495,1867.7,1866.7,0.61361772]
[1771824675267,0.14619622,1867.7,1866.7,0.61361772]
[1771824676267,0.69524663,1867.6,1866.7,0.61361772]
[1771824676468,0.14619622,1867.7,1866.7,0.61361772]
[1771824676669,0.84103009,1867.6,1866.7,0.61361772]
[1771824676967,0.14575201,1867.6,1866.7,0.61361772]
[1771824679271,0.15935067,1867.8,1866.8,0.67948575]
[1771824679473,0.69556319,1867.7,1866.8,0.67948575]
[1771824679764,0.69556319,1867.6,1866.8,0.67948575]
[1771824679971,0.15935067,1867.8,1866.8,0.67948575]
[1771824680175,0.69556538,1867.7,1866.8,0.67948575]
[1771824680468,0.69556538,1867.6,1866.8,0.67948575]
[1771824680669,0.15935067,1867.8,1866.8,0.67948575]
[1771824680872,0.69567552,1867.7,1866.8,0.67948575]
[1771824681062,0.69567552,1867.6,1866.8,0.67948575]
[1771824681266,0.15935067,1867.8,1866.8,0.67948575]
[1771824681462,0.69581847,1867.7,1866.8,0.67948575]
[1771824681671,0.69581847,1867.6,1866.8,0.67948575]
[1771824681871,0.15935067,1867.8,1866.8,0.67948575]
[1771824682067,0.17619985,1867.6,1866.8,0.67948575]
[1771824682264,0.17619985,1867.4,1866.7,0.67948575]
[1771824682467,0.17596772,1867.2,1866.7,0.67948575]
[1771824689081,4.74205083,1867.7,1866.7,0.67948575]
[1771824689282,0.19378761,1867.5,1866.7,0.67948575]
[1771824689477,0.19378761,1867.3,1866.7,0.67948575]
[1771824689677,0.89465797,1867.2,1866.7,0.67948575]
[1771824689872,0.1987898,1867.2,1866.7,0.67948575]
[1771824691583,0.19911318,1867.6,1866.7,0.67948575]
[1771824691883,0.19911318,1867.4,1866.7,0.67948575]
[1771824692084,0.89704626,1867.3,1866.7,0.67948575]
[1771824692291,4.74205083,1867.7,1866.7,0.67948575]
[1771824692292,0.89704626,1867.2,1866.7,0.67948575]
[1771824692481,0.20116256,1867.2,1866.7,0.67948575]
[1771824693287,4.74205083,1867.7,1866.7,0.67948575]
[1771824693488,15.10432225,1867.6,1867.0,0.67948575]
[1771824693694,6.467,1867.6,1867.0,0.67948575]
[1771824699100,0.21768922,1867.7,1867.0,0.67948575]
[1771824699701,0.22500421,1867.9,1867.0,0.67948575]
[1771824699901,0.22500421,1867.7,1867.0,0.67948575]
[1771824703896,0.93257751,1867.6,1867.0,0.67948575]
[1771824704103,0.2368766,1867.6,1867.0,0.67948575]
[1771824704804,0.2368766,1867.6,1866.8,0.67948575]
[1771824711212,0.2368766,1867.6,1867.0,0.70079556]
[1771824711910,0.24129082,1867.5,1866.8,0.70079556]
[1771824712115,0.24291722,1867.3,1866.8,0.70079556]
[1771824714014,0.24972889,1867.8,1866.8,0.70079556]
[1771824714206,0.25130873,1867.6,1866.8,0.70079556]
[1771824714406,0.6957865,1867.5,1866.8,0.70079556]
[1771824714613,0.25130873,1867.6,1866.8,0.70079556]
[1771824714814,0.26777,1867.9,1866.8,0.70079556]
[1771824714815,0.94703019,1867.5,1866.8,0.70079556]
[1771824715111,0.25117083,1867.5,1866.8,0.70079556]
[1771824720822,0.25785042,1867.3,1866.8,0.70079556]
[1771824721024,0.25930766,1867.8,1866.8,0.70079556]
[1771824721322,0.25930766,1867.6,1866.8,0.70079556]
[1771824721522,0.69648017,1867.5,1866.8,0.70079556]
[1771824721724,0.25930766,1867.6,1866.8,0.70079556]
[1771824721923,0.6966455,1867.5,1866.8,0.70079556]
[1771824722225,0.69682641,1867.4,1866.8,0.70079556]
[1771824722420,0.25930766,1867.6,1866.8,0.70079556]
[1771824722620,0.69684146,1867.5,1866.8,0.70079556]
[1771824722825,0.69684146,1867.4,1866.8,0.70079556]
[1771824723026,0.25930766,1867.6,1866.8,0.70079556]
[1771824723227,0.69708103,1867.5,1866.8,0.70079556]
[1771824723429,0.69708103,1867.4,1866.8,0.70079556]
[1771824723726,0.26152938,1867.5,1866.8,0.70079556]
[1771824723925,0.69708652,1867.4,1866.8,0.70079556]
[1771824724125,0.26152938,1867.5,1866.8,0.70079556]
[1771824724327,0.69707418,1867.4,1866.8,0.70079556]
[1771824724528,0.26152938,1867.5,1866.8,0.70079556]
[1771824724727,0.6970813,1867.4,1866.8,0.70079556]
[1771824724927,0.26152938,1867.5,1866.8,0.70079556]
[1771824725129,0.6970813,1867.4,1866.8,0.70079556]
[1771824725428,0.26152938,1867.5,1866.8,0.70079556]
[1771824725728,0.69708575,1867.4,1866.8,0.70079556]
[1771824725928,0.26152938,1867.5,1866.8,0.70079556]
[1771824726130,0.69708573,1867.4,1866.8,0.70079556]
[1771824726329,0.26152938,1867.5,1866.8,0.70079556]
[1771824726531,0.69709966,1867.4,1866.8,0.70079556]
[1771824726725,0.26437289,1867.8,1866.8,0.70079556]
[1771824727032,0.26777,1867.9,1866.8,0.70079556]
[1771824727033,8.91326392,1867.7,1866.8,0.70079556]
[1771824727234,0.69711178,1867.6,1866.8,0.70079556]
[1771824727431,0.69711178,1867.5,1866.8,0.70079556]
[1771824727635,0.26900733,1867.8,1866.8,0.70079556]
[1771824727834,0.69716322,1867.7,1866.8,0.70079556]
[1771824728133,0.69716322,1867.6,1866.8,0.70079556]
[1771824728334,0.26900733,1867.8,1866.8,0.70079556]
[1771824728530,0.69717707,1867.7,1866.8,0.70079556]
[1771824728735,0.69717707,1867.6,1866.8,0.70079556]
[1771824728935,0.26900733,1867.8,1866.8,0.70079556]
[1771824729136,0.69717923,1867.7,1866.8,0.70079556]
[1771824729336,0.69717923,1867.6,1866.8,0.70079556]
[1771824729534,0.26900733,1867.8,1866.8,0.70079556]
[1771824729733,0.69718867,1867.7,1866.8,0.70079556]
[1771824729934,0.69718867,1867.6,1866.8,0.70079556]
[1771824730135,0.26900733,1867.8,1866.8,0.70079556]
[1771824730334,0.69721521,1867.7,1866.8,0.70079556]
[1771824730535,0.69721521,1867.6,1866.8,0.70079556]
[1771824730736,0.26900733,1867.8,1866.8,0.70079556]
[1771824730937,0.69719839,1867.7,1866.8,0.70079556]
[1771824731134,0.69719839,1867.6,1866.8,0.70079556]
[1771824731333,0.27212574,1867.7,1866.8,0.70079556]
[1771824731537,0.69720785,1867.6,1866.8,0.70079556]
[1771824731737,0.27212574,1867.7,1866.8,0.70079556]
[1771824732037,0.69720785,1867.6,1866.8,0.70079556]
[1771824732237,0.27212574,1867.7,1866.8,0.70079556]
[1771824732437,0.69721518,1867.6,1866.8,0.70079556]
[1771824732640,0.27212574,1867.7,1866.8,0.70079556]
[1771824732837,0.69721518,1867.6,1866.8,0.70079556]
[1771824733041,0.27212574,1867.7,1866.8,0.70079556]
[1771824733239,0.69721518,1867.6,1866.8,0.70079556]
[1771824733539,0.27212574,1867.7,1866.8,0.70079556]
[1771824733838,0.69720316,1867.6,1866.8,0.70079556]
[1771824734038,0.27212574,1867.7,1866.8,0.70079556]
[1771824734237,0.69720316,1867.6,1866.8,0.70079556]
[1771824734436,0.27212574,1867.7,1866.8,0.70079556]
[1771824734635,0.69717431,1867.6,1866.8,0.70079556]
[1771824734834,0.26777,1867.9,1866.8,0.70079556]
[1771824735041,0.6971767,1867.8,1866.9,0.70079556]
[1771824735341,0.27135084,1868.0,1867.5,0.70079556]
[1771824735638,0.96904035,1867.9,1867.5,0.70517194]
[1771824735838,0.69698598,1867.8,1867.5,0.70517194]
[1771824736038,0.27205437,1867.9,1867.5,0.70517194]
[1771824736238,0.69698599,1867.8,1867.5,0.70517194]
[1771824736441,0.27205437,1867.9,1867.5,0.70517194]
[1771824736639,0.69680716,1867.8,1867.5,0.70517194]
[1771824736840,0.27257984,1868.0,1867.5,0.70517194]
[1771824737037,0.96995824,1867.9,1867.5,0.70517194]
[1771824737240,0.69680716,1867.8,1867.5,0.70517194]
[1771824737436,0.27315108,1867.9,1867.5,0.70517194]
[1771824739545,0.30074695,1868.1,1867.5,0.70517194]
[1771824739736,0.99288561,1868.0,1867.5,0.70517194]
[1771824740040,0.69642203,1867.9,1867.5,0.70517194]
[1771824740240,0.29646358,1868.0,1867.5,0.70517194]
[1771824740438,0.69628396,1867.9,1867.5,0.70517194]
[1771824740646,0.29646358,1868.0,1867.5,0.70517194]
[1771824740841,0.69628396,1867.9,1867.5,0.70517194]
[1771824741043,0.29646358,1868.0,1867.5,0.70517194]
[1771824741241,0.6962492,1867.9,1867.5,0.70517194]
[1771824741439,0.29646358,1868.0,1867.5,0.70517194]
[1771824745846,0.00428337,1868.1,1867.5,0.70517194]
[1771824748052,0.29601197,1868.1,1867.5,0.70517194]
[1771824748855,0.00428337,1868.1,1867.5,0.70517194]
[1771824749053,0.29712396,1868.1,1867.5,0.70517194]
[1771824762266,0.00428337,1868.1,1867.5,0.70517194]
[1771824763467,0.28451921,1868.2,1867.5,0.70517194]
[1771824763468,0.28925618,1868.5,1867.6,0.72843322]
[1771824763660,0.69684705,1868.4,1867.6,0.72843322]
[1771824763861,0.69684705,1868.3,1867.6,0.72843322]
[1771824764057,6.467,1868.6,1867.6,0.72843322]
[1771824764268,0.69687107,1868.5,1867.9,0.72843322]
[1771824764463,0.0062271,1868.5,1867.9,0.72843322]
[1771824766867,0.29250338,1868.9,1867.9,0.72843322]
[1771824767067,0.69603752,1868.8,1867.9,0.72843322]
[1771824767268,0.29250338,1868.9,1867.9,0.72843322]
[1771824767468,0.69574746,1868.8,1867.9,0.72843322]
[1771824767668,0.29250338,1868.9,1867.9,0.72843322]
[1771824767869,0.69574746,1868.8,1867.9,0.72843322]
[1771824768065,0.29012576,1868.7,1867.9,0.72843322]
[1771824771767,3.21479083,1869.7,1868.9,6.58304]
[1771824772072,0.70205384,1869.6,1869.2,0.74468748]
[1771824772276,0.70205384,1869.6,1868.9,0.74468748]
[1771824772576,0.70205384,1869.6,1868.6,0.74468748]
[1771824772776,0.70729522,1869.6,1868.6,0.74983869]
[1771824786988,0.70205384,1869.4,1868.6,0.00515121]
[1771824787285,0.70205384,1869.2,1868.4,0.74468748]
[1771824788382,0.70205384,1869.2,1868.4,0.75114935]
[1771824794184,0.69458043,1869.1,1868.4,0.75114935]
[1771824794384,0.70205384,1869.0,1868.4,0.75114935]
[1771824798089,0.75451413,1869.5,1868.4,0.75114935]
[1771824798285,0.75451413,1869.3,1868.4,0.75114935]
[1771824798489,0.75451413,1869.1,1868.4,0.75114935]
[1771824799295,0.75451413,1868.9,1868.4,0.75114935]
[1771824801395,0.75451413,1868.9,1868.4,0.00646187]
[1771824801596,0.75451413,1868.9,1868.4,0.7900708]
[1771824804497,0.75451413,1868.7,1867.8,0.78360893]
[1771824805391,0.75451413,1868.7,1867.8,0.78833622]
[1771824805996,0.75451413,1868.5,1867.8,0.78833622]
[1771824817299,0.75451413,1868.5,1868.0,2.61708564]
[1771824817505,0.75451413,1868.5,1868.1,0.78360893]
[1771824823306,0.75451413,1868.8,1868.2,2.61708564]
[1771824823507,0.75451413,1868.6,1868.3,0.78360893]
[1771824823810,0.75451413,1869.0,1868.3,0.78360893]
[1771824824012,0.75451413,1868.8,1868.3,0.78360893]
[1771824824211,0.75451413,1868.6,1868.3,0.78360893]
[1771824826314,6.467,1869.1,1868.3,0.78360893]
[1771824826516,0.75451413,1868.9,1868.3,0.78360893]
[1771824826712,0.75451413,1868.7,1868.3,0.78360893]
[1771824831223,1.44359089,1868.6,1868.3,0.78360893]
[1771824831423,0.7465882,1868.6,1868.3,0.78360893]
[1771824835326,0.7465882,1868.8,1868.3,2.61708564]
[1771824835528,0.7465882,1868.6,1868.3,2.61708564]
[1771824840134,0.7465882,1869.0,1868.4,0.79893976]
[1771824840433,0.7465882,1868.8,1868.4,0.79893976]
[1771824840733,0.7465882,1868.6,1868.2,0.79893976]
[1771824840928,0.7465882,1868.6,1868.0,0.79893976]
[1771824841432,0.7465882,1868.4,1868.0,0.79893976]
[1771824843030,0.7465882,1868.7,1868.2,0.79893976]
[1771824843230,1.44425989,1868.6,1868.2,0.79893976]
[1771824843425,0.69767169,1868.5,1868.2,0.79893976]
[1771824843623,0.7465882,1868.5,1868.2,0.79893976]
[1771824847829,0.7465882,1868.5,1867.8,0.80366705]
[1771824848034,0.7465882,1868.3,1867.8,0.80366705]
[1771824848236,0.7465882,1868.3,1867.9,0.79893976]
[1771824848437,0.7465882,1868.5,1867.9,0.79893976]
[1771824848635,1.44434124,1868.4,1867.9,0.79893976]
[1771824848837,0.7465882,1868.4,1867.9,0.79893976]
[1771824853938,0.7465882,1868.1,1867.2,1.83347671]
[1771824854137,0.7465882,1867.9,1867.3,0.76123685]
[1771824854641,0.7465882,1867.9,1867.5,0.76138743]
[1771824854838,0.7465882,1867.9,1867.4,0.35747779]
[1771824855237,0.75187643,1867.9,1867.4,0.36297017]
[1771824855433,0.75187643,1867.9,1867.4,0.00549238]
[1771824856436,0.7465882,1868.1,1867.8,2.63241647]
[1771824856640,0.7465882,1868.1,1867.7,0.79893976]
[1771824857441,0.75050655,1868.1,1867.7,0.79893976]
[1771824858946,0.75050655,1868.1,1867.6,0.83311875]
[1771824863541,0.80340936,1868.2,1867.6,0.83311875]
[1771824864545,0.80891571,1868.2,1867.6,0.83311875]
[1771824869943,0.80891571,1868.2,1867.4,0.00549238]
[1771824870152,0.80340936,1868.0,1867.4,0.83861113]
[1771824872948,0.00550635,1868.2,1867.6,0.83311875]
[1771824872949,0.80340936,1868.1,1867.6,0.83311875]
[1771824873151,0.80891571,1868.2,1867.6,0.83311875]
[1771824878354,0.80340936,1868.0,1867.5,0.83311875]
[1771824878651,0.80340936,1868.0,1867.4,0.83861113]
[1771824900363,0.84242627,1868.2,1867.4,0.83861113]
[1771824900569,1.53471693,1868.1,1867.7,0.82350287]
[1771824900867,0.83691992,1868.1,1867.7,0.82350287]
[1771824902061,0.84242627,1868.2,1867.7,0.82350287]
[1771824902462,0.83691992,1868.5,1867.9,0.82350287]
[1771824902670,1.53472817,1868.4,1867.9,0.82350287]
[1771824902868,1.53472817,1868.3,1867.9,0.82350287]
[1771824903068,0.83691992,1868.3,1867.9,0.82350287]
[1771824903469,0.84121893,1868.3,1867.9,0.82350287]
[1771824906475,0.83691992,1868.8,1867.9,0.82350287]
[1771824906676,0.83691992,1868.6,1867.9,0.82350287]
[1771824906876,0.69717858,1868.5,1868.1,0.82350287]
[1771824907078,0.83691992,1868.7,1868.1,0.82350287]
[1771824907377,1.53384801,1868.6,1868.1,0.82350287]
[1771824907574,0.83691992,1868.6,1868.1,0.82350287]
[1771824908874,0.83691992,1868.6,1867.9,0.82350287]
[1771824909773,0.83691992,1868.4,1867.8,0.82350287]
[1771824917186,0.83691992,1868.4,1867.5,0.82350287]
[1771824918785,0.87044577,1868.2,1867.5,0.82350287]
[1771824921086,0.87044577,1868.0,1867.4,0.00549238]
[1771824922486,0.87044577,1868.0,1867.4,0.87231694]
[1771824923492,0.87044577,1868.0,1867.4,2.70692462]
[1771824930188,0.87044577,1868.0,1867.4,0.00549238]
[1771824930989,0.26772,1868.2,1867.2,1.83460768]
[1771824930990,0.87044577,1867.8,1867.2,0.86682456]
[1771824931986,0.87044577,1867.8,1867.2,0.87194208]
[1771824932183,0.87044577,1868.1,1867.6,2.70143224]
[1771824932491,0.87044577,1868.1,1867.2,1.8397252]
[1771824932492,0.69996198,1868.4,1868.0,2.70143224]
[1771824935893,0.69996198,1868.4,1868.1,0.86682456]
[1771824939288,0.69996198,1868.4,1867.9,0.86682456]
[1771824945096,0.69996198,1868.4,1868.0,2.70143224]
[1771824951295,0.69996198,1868.4,1868.0,1.83460768]
[1771824951793,0.69996198,1868.4,1868.0,2.69655072]
[1771824952094,0.26996198,1868.4,1868.0,2.69655072]
[1771824952494,0.26996198,1868.4,1868.1,0.86194304]
[1771824954389,0.27409994,1868.7,1868.1,0.86194304]
[1771824954390,0.5529582,1868.6,1868.1,0.86194304]
[1771824954595,1.24889576,1868.5,1868.1,0.86194304]
[1771824954897,0.69593756,1868.4,1868.1,0.86194304]
[1771824955091,6.467,1868.8,1868.3,0.86194304]
[1771824955296,7.02193313,1869.1,1868.6,0.86194304]
[1771824955497,8.48762436,1869.0,1868.6,0.16592545]
[1771824955697,0.27409994,1868.9,1868.6,0.16592545]
[1771824956095,0.27409994,1868.8,1868.6,0.1713514]
[1771824957493,0.00538025,1868.9,1868.6,0.1713514]
[1771824957897,0.27409994,1868.8,1868.6,0.1713514]
[1771824960301,0.85773829,1868.8,1868.3,0.86194304]
[1771824960603,0.85773829,1868.7,1868.1,0.86194304]
[1771824961000,0.85773829,1868.6,1868.1,0.86194304]
[1771824961403,0.85773829,1868.5,1868.1,0.86860112]
[1771824961902,0.85773829,1868.7,1868.3,0.86194304]
[1771824962102,0.85773829,1868.6,1868.3,0.86194304]
[1771824962504,0.27409994,1868.5,1868.3,0.86194304]
[1771824962902,1.13183823,1868.5,1868.2,0.86194304]
[1771824963112,1.13183823,1868.4,1868.1,0.00665808]
[1771824963406,0.85773829,1868.3,1868.1,0.00665808]
[1771824964201,0.85773829,1868.2,1868.1,0.00665808]
[1771824965803,1.13183823,1868.2,1868.1,0.00665808]
[1771824967912,0.85773829,1868.1,1867.7,0.86194304]
[1771824969012,0.85773829,1868.1,1867.7,0.86877264]
[1771824970312,0.85773829,1868.3,1867.7,0.86877264]
[1771824970513,1.54922236,1868.2,1867.7,0.86877264]
[1771824970712,0.85773829,1868.2,1867.7,0.86877264]
[1771824970907,0.27409994,1868.2,1867.7,0.86877264]
[1771824971113,0.85773829,1868.4,1867.9,0.86194304]
[1771824971315,0.69146645,1868.3,1867.9,0.86194304]
[1771824971611,0.85773829,1868.4,1867.9,0.86194304]
[1771824971814,0.69145123,1868.3,1867.9,0.86194304]
[1771824972008,0.27409994,1868.3,1867.9,0.86194304]
[1771824972214,0.85773829,1868.4,1867.9,0.86194304]
[1771824972409,1.82325104,1868.3,1867.9,0.86194304]
[1771824972612,0.85773829,1868.2,1867.9,0.86194304]
[1771824972810,0.85773829,1868.4,1867.9,0.86194304]
[1771824973009,1.82325097,1868.3,1867.9,0.86194304]
[1771824973314,1.13183823,1868.3,1867.9,0.86194304]
[1771824973613,0.27409994,1868.2,1867.9,0.86194304]
[1771824975417,0.27409994,1868.1,1867.9,0.86194304]
[1771824975616,0.85773829,1868.3,1867.9,0.86194304]
[1771824975917,0.27409994,1868.2,1867.9,0.86194304]
[1771824976618,0.27409994,1868.1,1867.9,0.86194304]
[1771824976816,0.85773829,1868.3,1867.9,0.86194304]
[1771824977018,0.27409994,1868.2,1867.9,0.86194304]
[1771824977516,0.27409994,1868.1,1867.9,0.86194304]
[1771824977816,0.85773829,1868.3,1867.9,0.86194304]
[1771824978016,0.27409994,1868.2,1867.9,0.86194304]
[1771824978810,0.27409994,1868.1,1867.9,0.86194304]
[1771824979119,0.85773829,1868.3,1867.9,0.86194304]
[1771824979419,0.27409994,1868.2,1867.9,0.86194304]
[1771824979820,1.21895169,1868.5,1867.9,0.86194304]
[1771824980015,0.95127169,1868.3,1867.9,0.86194304]
[1771824982819,0.95127169,1867.5,1866.6,0.89855924]
[1771824983120,0.95127169,1867.3,1866.6,0.89855924]
[1771824983822,0.95747489,1867.3,1866.7,1.83460768]
[1771824984025,0.0062032,1867.3,1867.0,0.89855924]
[1771824984622,0.95747489,1867.3,1867.0,0.89855924]
[1771824985915,0.95747489,1867.3,1866.7,0.89855924]
[1771824990528,0.95127169,1867.1,1866.6,0.90511885]
[1771824990826,0.95127169,1866.9,1866.4,0.89855924]
[1771824991022,0.95127169,1866.9,1865.9,0.89855924]
[1771824991926,0.95127169,1866.9,1865.9,0.90475461]
[1771824995634,0.95127169,1866.7,1865.9,0.90475461]
[1771825000031,0.95127169,1867.1,1866.1,0.89855924]
[1771825002332,0.95127169,1867.1,1865.4,8.4316604]
[1771825002333,0.95127169,1866.2,1865.6,0.89855924]
[1771825003432,0.95127169,1866.2,1865.6,0.00567713]
[1771825003729,0.95127169,1866.2,1865.6,0.90423637]
[1771825004030,0.26797,1866.5,1865.6,0.90423637]
[1771825004031,0.95127169,1866.4,1865.6,0.90423637]
[1771825004530,0.95127169,1866.6,1865.6,0.90423637]
[1771825015238,0.92844727,1866.4,1865.6,0.90423637]
[1771825020444,0.92844727,1866.7,1865.6,0.90423637]
[1771825020645,0.92844727,1866.5,1865.6,0.90423637]
[1771825020844,0.69086775,1866.4,1865.6,0.90423637]
[1771825021046,0.92844727,1866.6,1865.6,0.90423637]
[1771825021246,0.69087486,1866.5,1865.6,0.90423637]
[1771825021448,0.92844727,1866.6,1865.6,0.90423637]
[1771825021750,0.69097135,1866.5,1865.7,0.95298149]
[1771825021947,0.92844727,1866.6,1865.7,0.95298149]
[1771825022144,0.69098089,1866.5,1865.7,0.95298149]
[1771825022345,0.92844727,1866.6,1865.7,0.95298149]
[1771825022544,1.61951016,1866.5,1865.7,0.95298149]
[1771825022847,0.92844727,1866.5,1865.7,0.95298149]
[1771825023346,0.92844727,1866.8,1865.7,0.95298149]
[1771825023553,0.92844727,1866.6,1865.7,0.95298149]
[1771825027649,0.92844727,1866.7,1865.7,0.95298149]
[1771825034151,0.92844727,1866.9,1865.9,0.95298149]
[1771825034359,0.92844727,1867.0,1865.9,0.95298149]
[1771825034753,0.92844727,1867.0,1866.0,0.26803]
[1771825034957,0.92844727,1867.0,1866.1,0.95298149]
[1771825043065,0.92844727,1867.0,1866.3,0.9501951]
[1771825044966,0.0062032,1867.3,1865.7,6.59432]
[1771825044967,0.89365043,1866.8,1865.7,0.9501951]
[1771825045267,0.89365043,1866.7,1865.8,2.10547169]
[1771825045466,0.89365043,1866.7,1865.9,0.268]
[1771825046662,0.89365043,1866.7,1865.8,2.78766679]
[1771825046863,0.89365043,1866.7,1865.9,0.268]
[1771825051872,0.89365043,1866.7,1865.8,0.9501951]
[1771825052072,0.89365043,1866.7,1865.9,0.268]
[1771825052673,0.89365043,1866.7,1865.9,1.2181951]
[1771825054573,0.89365043,1866.7,1865.9,0.268]
[1771825055576,0.89365043,1866.7,1866.0,0.9501951]
[1771825055871,0.89365043,1866.7,1865.9,0.268]
[1771825057569,0.89365043,1866.7,1866.0,0.268]
[1771825057770,0.89365043,1866.7,1866.0,1.2181951]
[1771825058171,0.89365043,1866.7,1866.0,0.268]
[1771825060786,0.89365043,1866.3,1865.6,0.00567713]
[1771825060980,0.89365043,1866.1,1865.6,0.00567713]
[1771825062486,0.89365043,1865.9,1865.3,0.9501951]
[1771825062679,0.89365043,1865.9,1865.2,0.9501951]
[1771825063483,0.89836494,1865.9,1865.2,0.95595903]
[1771825065788,0.89365043,1865.7,1865.2,0.00576393]
[1771825067084,0.89365043,1865.7,1865.2,0.95595903]
[1771825069593,0.89365043,1865.7,1865.2,0.00576393]
[1771825070493,0.97726142,1865.6,1864.7,2.32229366]
[1771825070793,0.97726142,1865.6,1864.8,0.93248523]
[1771825070991,0.97726142,1865.6,1864.7,3.22894058]
[1771825070992,0.97726142,1865.6,1865.0,0.93248523]
[1771825071292,0.97726142,1865.6,1864.9,2.77161738]
[1771825071492,0.97726142,1865.6,1864.9,2.77613568]
[1771825072094,0.97726142,1865.6,1864.9,0.93700353]
[1771825072781,0.97726142,1865.6,1864.9,2.77613568]
[1771825072982,0.97726142,1865.6,1865.0,0.93248523]
[1771825074087,0.97726142,1865.6,1865.2,0.93248523]
[1771825076894,0.97726142,1865.6,1865.0,0.93248523]
[1771825083590,0.97726142,1865.6,1864.9,0.0045183]
[1771825083994,0.97726142,1865.6,1864.7,2.32229366]
[1771825084790,0.97726142,1865.6,1864.7,0.93248523]
[1771825084995,0.97726142,1865.6,1864.7,0.93865247]
[1771825085695,0.97726142,1865.4,1864.7,0.00616724]
[1771825086100,0.97726142,1865.4,1864.7,0.93865247]
[1771825087201,0.97726142,1865.4,1864.7,0.00616724]
[1771825088204,0.97726142,1865.4,1864.7,0.93865247]
[1771825089696,0.97726142,1865.7,1864.7,0.93865247]
[1771825090000,1.66708682,1865.6,1864.7,0.93865247]
[1771825090201,0.97726142,1865.6,1864.7,0.93865247]